bitfinex-derivatives/quotes_SOLF0:USTF0_20250928
["timestamp","ask_amount","ask_price","bid_price","bid_amount"]
[1759028416590,12.2739,201.51,201.45,7.92]
[1759028419794,4.4642,201.5,201.45,7.92]
[1759028419984,7.81,201.49,201.42,12.3856]
[1759028421594,12.2743,201.49,201.42,12.3856]
[1759028422793,4.4645,201.48,201.42,12.3856]
[1759028424889,7.81,201.49,201.44,7.7]
[1759028425393,7.81,201.49,201.43,1.21309258]
[1759028425690,7.81,201.49,201.44,7.7]
[1759028425888,7.81,201.49,201.43,1.21309258]
[1759028426092,7.81,201.49,201.45,7.7]
[1759028426292,5.67699258,201.51,201.45,7.7]
[1759028426990,7.79,201.5,201.44,4.4651]
[1759028427196,12.2541,201.5,201.44,7.7]
[1759028430396,7.79,201.5,201.44,7.7]
[1759028434896,12.2534,201.53,201.46,7.7]
[1759028435698,12.2534,201.53,201.47,1.21309258]
[1759028436395,12.2534,201.53,201.47,8.91309258]
[1759028436597,4.4639,201.51,201.44,1.21309258]
[1759028436794,7.79,201.5,201.44,8.91309258]
[1759028438298,4.4642,201.49,201.44,8.91309258]
[1759028438696,4.4642,201.49,201.44,7.7]
[1759028439305,7.79,201.48,201.43,7.7]
[1759028439703,12.2542,201.49,201.43,7.7]
[1759028440501,12.2542,201.49,201.4,120.16]
[1759028440502,7.79,201.47,201.4,7.7]
[1759028441507,4.465,201.46,201.4,7.7]
[1759028443005,4.465,201.46,201.4,8.91309258]
[1759028445410,7.79,201.47,201.41,7.7]
[1759028446611,7.79,201.47,201.41,12.1658]
[1759028450909,7.79,201.47,201.42,7.7]
[1759028451119,7.79,201.47,201.41,4.4658]
[1759028451616,7.79,201.47,201.42,7.7]
[1759028451801,7.79,201.47,201.41,4.4658]
[1759028452212,7.79,201.47,201.42,7.7]
[1759028452405,7.79,201.47,201.41,4.4658]
[1759028452811,7.79,201.47,201.41,12.1658]
[1759028455712,7.79,201.47,201.43,7.65]
[1759028455913,12.004,201.5,201.43,7.65]
[1759028456619,12.004,201.5,201.44,1.21309258]
[1759028457218,7.54,201.5,201.45,7.65]
[1759028458119,7.54,201.5,201.44,1.21309258]
[1759028458713,7.54,201.5,201.45,7.65]
[1759028458915,7.54,201.54,201.49,7.65]
[1759028459115,7.54,201.54,201.48,1.21309258]
[1759028459316,7.54,201.54,201.49,4.464]
[1759028459816,7.54,201.54,201.5,7.65]
[1759028460016,7.54,201.54,201.49,4.464]
[1759028460416,7.54,201.54,201.5,7.65]
[1759028460624,7.54,201.56,201.5,13.32689258]
[1759028461515,7.54,201.56,201.52,7.65]
[1759028461715,4.4625,201.57,201.52,7.65]
[1759028461924,7.54,201.56,201.52,7.65]
[1759028462127,4.4625,201.57,201.52,7.65]
[1759028462319,7.54,201.58,201.52,7.65]
[1759028462523,7.54,201.56,201.52,7.65]
[1759028463030,7.54,201.58,201.52,7.65]
[1759028463519,7.54,201.58,201.51,4.4636]
[1759028463520,3.43566844,201.57,201.51,4.4636]
[1759028463822,7.54,201.57,201.51,4.4636]
[1759028468025,7.54,201.59,201.52,12.1134]
[1759028469226,7.54,201.59,201.51,1.89492372]
[1759028469425,7.54,201.59,201.52,7.63]
[1759028469618,7.54,201.59,201.5,7.63]
[1759028469828,7.54,201.59,201.47,1.89492372]
[1759028470024,7.54,201.59,201.48,7.63]
[1759028470732,7.48,201.58,201.5,12.0938]
[1759028470932,7.48,201.58,201.5,26.86904862]
[1759028472632,7.48,201.58,201.51,4.4636]
[1759028475332,7.48,201.58,201.52,7.63]
[1759028475734,0.8157108,201.6,201.52,7.63]
[1759028475934,0.8157108,201.6,201.54,7.63]
[1759028476129,0.8157108,201.6,201.56,4.4625]
[1759028476330,0.8157108,201.6,201.54,7.63]
[1759028477333,7.48,201.64,201.54,7.63]
[1759028477736,7.48,201.64,201.57,12.0922]
[1759028478331,7.48,201.64,201.59,7.63]
[1759028478732,7.48,201.64,201.58,4.462]
[1759028479234,7.48,201.65,201.57,7.63]
[1759028480538,7.48,201.65,201.58,4.462]
[1759028485936,7.48,201.65,201.59,7.84]
[1759028486937,7.48,201.65,201.59,12.3018]
[1759028489233,7.91,201.67,201.57,69.4158]
[1759028489429,7.91,201.67,201.58,7.84]
[1759028490740,7.91,201.67,201.6,7.84]
[1759028492536,7.91,201.67,201.6,12.3016]
[1759028493138,4.4602,201.68,201.6,12.3016]
[1759028494140,7.91,201.67,201.6,12.3016]
[1759028494335,4.4602,201.68,201.6,12.3016]
[1759028494537,7.91,201.67,201.6,12.3016]
[1759028495037,7.91,201.66,201.57,7.84]
[1759028495334,1.89492372,201.64,201.52,7.84]
[1759028495540,1.89492372,201.64,201.53,7.84]
[1759028495742,7.91,201.63,201.53,7.84]
[1759028496447,7.91,201.61,201.53,7.84]
[1759028496641,9.80492372,201.61,201.53,7.84]
[1759028496846,7.91,201.61,201.53,7.84]
[1759028497233,7.91,201.61,201.56,7.84]
[1759028497437,7.91,201.61,201.52,7.84]
[1759028498645,7.91,201.61,201.54,7.84]
[1759028500848,7.91,201.61,201.54,12.3029]
[1759028501742,7.91,201.61,201.55,4.4627]
[1759028502347,1.89492372,201.66,201.56,7.84]
[1759028502548,4.461,201.64,201.55,12.3027]
[1759028502851,7.91,201.63,201.55,12.3027]
[1759028503050,7.91,201.63,201.56,4.4625]
[1759028503251,7.91,201.63,201.57,7.84]
[1759028506754,7.91,201.63,201.57,4.4622]
[1759028507256,7.91,201.65,201.58,4.462]
[1759028507445,7.91,201.65,201.59,7.84]
[1759028508549,7.91,201.65,201.59,12.3018]
[1759028509251,4.46,201.68,201.59,7.84]
[1759028509451,7.91,201.69,201.59,7.84]
[1759028511652,4.4603,201.67,201.59,7.84]
[1759028511848,7.91,201.66,201.59,7.84]
[1759028512454,7.91,201.66,201.59,12.3018]
[1759028514386,7.91,201.66,201.6,4.4616]
[1759028514659,7.91,201.66,201.55,7.58]
[1759028514862,7.57,201.66,201.55,7.58]
[1759028515358,7.57,201.62,201.55,7.58]
[1759028516662,4.4617,201.61,201.55,7.58]
[1759028517055,7.57,201.6,201.55,7.58]
[1759028517260,12.0317,201.61,201.55,7.58]
[1759028520863,7.57,201.59,201.52,7.58]
[1759028521565,7.57,201.59,201.52,12.0433]
[1759028521764,4.4615,201.61,201.53,7.58]
[1759028522663,4.4615,201.61,201.54,4.463]
[1759028522967,4.462,201.59,201.53,7.58]
[1759028523667,7.57,201.54,201.47,8.33939368]
[1759028523859,7.57,201.54,201.48,7.58]
[1759028524257,7.57,201.52,201.43,7.58]
[1759028524564,8.78369207,201.52,201.43,8.79369207]
[1759028524766,1.21369207,201.5,201.43,7.58]
[1759028525064,7.57,201.49,201.43,7.58]
[1759028525269,12.0343,201.49,201.43,7.58]
[1759028525563,7.57,201.49,201.43,7.58]
[1759028526369,7.57,201.52,201.45,8.79369207]
[1759028527672,69.4049,201.61,201.49,7.58]
[1759028527673,5.67629207,201.56,201.49,7.58]
[1759028527867,4.4626,201.56,201.49,8.79369207]
[1759028528270,7.57,201.57,201.49,13.25769207]
[1759028532071,7.57,201.57,201.49,5.67769207]
[1759028532264,7.57,201.57,201.51,4.4637]
[1759028533776,7.57,201.57,201.51,5.67739207]
[1759028534278,7.57,201.57,201.52,4.4633]
[1759028534473,7.57,201.57,201.53,7.39]
[1759028535280,1.21369207,201.6,201.53,7.39]
[1759028535582,7.41,201.59,201.53,7.39]
[1759028536874,7.41,201.59,201.53,11.8531]
[1759028537980,7.41,201.59,201.53,7.39]
[1759028538170,1.21369207,201.6,201.5,11.8538]
[1759028538375,7.41,201.59,201.5,11.8538]
[1759028539080,7.41,201.59,201.51,4.4636]
[1759028539780,7.41,201.59,201.51,5.67729207]
[1759028540774,1.21369207,201.58,201.5,7.39]
[1759028540969,1.21369207,201.54,201.47,7.39]
[1759028541170,7.41,201.53,201.47,7.39]
[1759028544275,7.68,201.51,201.47,7.39]
[1759028544477,1.21369207,201.5,201.44,7.98]
[1759028544673,7.68,201.49,201.44,7.98]
[1759028545085,5.67779207,201.5,201.44,7.98]
[1759028545286,7.68,201.49,201.44,7.98]
[1759028545780,5.67779207,201.5,201.44,7.98]
[1759028546082,7.68,201.49,201.44,7.98]
[1759028546284,5.67779207,201.5,201.44,7.98]
[1759028546481,7.68,201.49,201.44,7.98]
[1759028546984,5.67779207,201.5,201.44,7.98]
[1759028547279,13.35779207,201.5,201.44,7.98]
[1759028552292,4.4643,201.49,201.44,7.98]
[1759028553387,8.89369207,201.5,201.44,7.98]
[1759028560094,13.35779207,201.5,201.44,7.98]
[1759028561896,69.4182,201.57,201.44,7.98]
[1759028562094,8.89369207,201.55,201.48,7.98]
[1759028562295,7.68,201.55,201.48,7.98]
[1759028563702,7.68,201.55,201.48,12.4443]
[1759028566295,7.68,201.55,201.48,13.65799207]
[1759028567087,1.21369207,201.57,201.48,7.98]
[1759028567294,7.68,201.54,201.48,7.98]
[1759028568389,4.4634,201.53,201.48,7.98]
[1759028568594,7.68,201.55,201.48,7.98]
[1759028569100,7.68,201.55,201.49,9.19369207]
[1759028569602,12.143,201.55,201.49,9.19369207]
[1759028571095,4.4632,201.54,201.49,9.19369207]
[1759028571300,7.68,201.53,201.49,7.98]
[1759028572301,7.68,201.52,201.46,12.4448]
[1759028572502,4.4634,201.53,201.47,1.21369207]
[1759028572708,7.68,201.52,201.47,1.21369207]
[1759028573007,7.68,201.52,201.48,7.98]
[1759028573202,4.4634,201.53,201.48,7.98]
[1759028573504,93.4692,201.59,201.48,7.98]
[1759028573505,8.07,201.6,201.53,7.54]
[1759028573807,8.07,201.6,201.54,1.21369207]
[1759028574409,8.93351286,201.65,201.55,7.54]
[1759028574605,8.07,201.65,201.59,7.54]
[1759028575010,8.07,201.65,201.6,1.21369207]
[1759028575204,279.03150006,201.7,201.61,7.54]
[1759028575205,8.07,201.69,201.61,7.54]
[1759028575505,3.41142685,201.68,201.61,7.54]
[1759028575716,12.5299,201.69,201.61,7.54]
[1759028576016,3.41174221,201.68,201.61,7.54]
[1759028576207,12.5299,201.69,201.61,7.54]
[1759028576710,12.5299,201.69,201.61,12.0013]
[1759028580914,12.5299,201.69,201.62,1.21369207]
[1759028585520,4.4602,201.68,201.62,1.21369207]
[1759028585726,8.07,201.67,201.6,8.75369207]
[1759028586523,8.07,201.67,201.6,7.54]
[1759028587427,8.07,201.67,201.57,7.54]
[1759028588729,12.5302,201.67,201.61,7.54]
[1759028594729,7.57,201.65,201.59,4.4618]
[1759028594932,7.57,201.65,201.56,4.4626]
[1759028596631,7.57,201.63,201.56,4.4626]
[1759028598932,4.4613,201.62,201.56,4.4626]
[1759028599939,7.57,201.63,201.57,4.4622]
[1759028600235,7.57,201.68,201.57,9.93332107]
[1759028600539,7.57,201.67,201.59,8.04]
[1759028601539,4.4606,201.66,201.59,8.04]
[1759028604039,7.57,201.67,201.6,4.4616]
[1759028604246,7.57,201.67,201.61,8.08]
[1759028608349,7.57,201.67,201.61,8.08]
[1759028608849,4.4601,201.68,201.62,8.08]
[1759028609049,170.41110006,201.7,201.62,8.08]
[1759028609354,170.41110006,201.7,201.64,8.08]
[1759028609948,12.2796,201.7,201.64,8.08]
[1759028613543,7.82,201.7,201.6,71.29842107]
[1759028613750,4.4592,201.72,201.61,8.08]
[1759028614549,4.4592,201.72,201.65,4.4605]
[1759028614850,4.4592,201.72,201.66,8.08]
[1759028615652,4.4592,201.72,201.66,12.5403]
[1759028616048,7.82,201.73,201.67,8.08]
[1759028623260,7.82,201.73,201.67,12.54]
[1759028624464,12.279,201.73,201.67,8.08]
[1759028628763,7.82,201.73,201.67,8.08]
[1759028629668,7.82,201.73,201.67,12.54]
[1759028630263,7.82,201.73,201.68,8.08]
[1759028630966,7.82,201.73,201.67,4.46]
[1759028631166,7.82,201.73,201.68,8.08]
[1759028631363,7.82,201.73,201.67,4.46]
[1759028631965,4.4585,201.75,201.67,4.46]
[1759028632164,7.82,201.74,201.67,12.54]
[1759028632868,12.2788,201.74,201.67,12.54]
[1759028634479,7.82,201.74,201.69,4.4596]
[1759028634663,8.0,201.79,201.67,7.75]
[1759028635568,4.4578,201.78,201.71,4.4592]
[1759028635870,4.4578,201.78,201.71,12.2092]
[1759028636766,8.0,201.77,201.71,12.2092]
[1759028641681,8.0,201.77,201.72,4.4589]
[1759028641982,8.0,201.77,201.73,7.75]
[1759028642183,8.0,201.77,201.72,4.4589]
[1759028642385,4.4578,201.78,201.73,7.75]
[1759028642683,8.0,201.77,201.73,7.75]
[1759028642884,8.0,201.77,201.72,4.4589]
[1759028643380,8.0,201.77,201.73,7.75]
[1759028644376,8.0,201.76,201.7,4.4595]
[1759028646986,12.4583,201.76,201.7,4.4595]
[1759028648983,8.0,201.76,201.7,4.4595]
[1759028649179,8.0,201.76,201.69,8.96046534]
[1759028649180,8.0,201.76,201.72,7.75]
[1759028649385,7.86,201.77,201.72,8.06]
[1759028650491,7.86,201.79,201.72,12.519]
[1759028651191,7.86,201.78,201.72,12.519]
[1759028653396,7.86,201.78,201.67,5.54240132]
[1759028653590,7.86,201.76,201.66,8.06]
[1759028653790,1.21046534,201.74,201.66,8.06]
[1759028653991,7.86,201.73,201.66,8.06]
[1759028655399,12.319,201.73,201.66,12.5203]
[1759028660204,7.86,201.73,201.67,4.4601]
[1759028660506,4.4584,201.75,201.68,8.06]
[1759028661610,7.86,201.74,201.68,8.06]
[1759028662510,12.3188,201.74,201.68,8.06]
[1759028662704,13.52926534,201.74,201.68,8.06]
[1759028669116,7.86,201.74,201.67,5.55594795]
[1759028669412,7.86,201.74,201.65,135.06607169]
[1759028669413,4.4582,201.76,201.69,7.58]
[1759028670618,4.4582,201.76,201.7,4.4594]
[1759028671013,7.59,201.75,201.7,4.4594]
[1759028671412,7.59,201.75,201.71,7.58]
[1759028671708,7.59,201.71,201.65,22.22607169]
[1759028671907,7.59,201.69,201.66,7.58]
[1759028672715,5.67016534,201.7,201.65,7.58]
[1759028672913,1.21046534,201.7,201.64,121.43221371]
[1759028673114,1.21046534,201.72,201.65,7.58]
[1759028673316,4.4594,201.71,201.65,7.58]
[1759028674618,12.0489,201.73,201.65,7.58]
[1759028674815,13.25936534,201.73,201.65,14.34641329]
[1759028675219,13.25936534,201.73,201.65,6.76641329]
[1759028675422,13.25936534,201.73,201.66,7.58]
[1759028675717,4.4594,201.71,201.66,7.58]
[1759028676107,7.59,201.72,201.66,7.58]
[1759028676421,1.21046534,201.71,201.66,7.58]
[1759028676719,7.59,201.7,201.66,7.58]
[1759028677215,1.21046534,201.71,201.66,7.58]
[1759028677716,7.59,201.69,201.66,7.58]
[1759028679913,7.59,201.69,201.64,136.60164258]
[1759028680315,7.59,201.69,201.65,7.58]
[1759028680521,7.59,201.69,201.64,136.60164258]
[1759028680724,7.59,201.69,201.65,7.58]
[1759028681020,7.59,201.69,201.64,136.60164258]
[1759028681615,7.59,201.69,201.65,7.58]
[1759028682021,7.59,201.69,201.66,7.58]
[1759028683722,12.049,201.73,201.66,7.58]
[1759028684625,12.049,201.73,201.66,12.0403]
[1759028684827,7.59,201.73,201.67,1.21046534]
[1759028685023,7.59,201.73,201.68,7.58]
[1759028685429,7.59,201.73,201.67,1.21046534]
[1759028685629,7.59,201.73,201.69,7.58]
[1759028686234,7.59,201.73,201.68,4.4599]
[1759028687232,7.59,201.73,201.69,7.58]
[1759028687434,4.4584,201.75,201.69,7.58]
[1759028687628,7.59,201.74,201.69,7.58]
[1759028688028,4.4584,201.75,201.69,7.58]
[1759028688327,7.59,201.74,201.68,7.58]
[1759028689633,7.59,201.74,201.68,12.0399]
[1759028690238,7.59,201.74,201.69,4.4596]
[1759028691130,4.4584,201.75,201.7,7.58]
[1759028691335,12.0484,201.75,201.69,12.0396]
[1759028695437,7.59,201.75,201.69,8.79046534]
[1759028695646,8.49615394,201.79,201.72,8.09]
[1759028695840,8.49615394,201.79,201.73,1.21046534]
[1759028696136,8.49615394,201.79,201.73,9.30046534]
[1759028696636,8.49615394,201.79,201.73,13.75916534]
[1759028696840,0.74615394,201.79,201.73,12.5487]
[1759028697130,1.21046534,201.79,201.73,12.5487]
[1759028697335,8.96046534,201.79,201.73,12.5487]
[1759028700433,13.41816534,201.79,201.73,8.09]
[1759028701532,12.2077,201.79,201.73,8.09]
[1759028701733,7.75,201.78,201.71,1.21046534]
[1759028702037,7.75,201.78,201.7,8.09]
[1759028702238,4.4584,201.76,201.7,8.09]
[1759028702634,7.75,201.76,201.7,8.09]
[1759028703632,4.4586,201.75,201.7,8.09]
[1759028704035,7.75,201.74,201.69,1.21046534]
[1759028704236,7.75,201.74,201.7,8.09]
[1759028704540,4.4586,201.75,201.7,8.09]
[1759028704734,7.75,201.74,201.68,10.01574795]
[1759028704942,7.75,201.74,201.68,4.4598]
[1759028705442,7.75,201.74,201.68,12.5498]
[1759028705743,12.2081,201.77,201.7,8.09]
[1759028706445,4.4583,201.76,201.7,8.09]
[1759028706935,7.75,201.75,201.7,8.09]
[1759028707442,4.4586,201.75,201.7,8.09]
[1759028707639,7.75,201.74,201.7,8.09]
[1759028707838,4.4586,201.75,201.7,8.09]
[1759028708445,7.75,201.74,201.7,8.09]
[1759028709339,7.39,201.74,201.7,8.09]
[1759028709844,4.4586,201.75,201.7,8.09]
[1759028710444,7.39,201.74,201.7,8.09]
[1759028710842,4.4586,201.75,201.68,4.4598]
[1759028711142,11.8486,201.75,201.69,7.43]
[1759028711553,7.39,201.75,201.69,4.4595]
[1759028711745,4.458,201.77,201.7,7.43]
[1759028712547,4.458,201.77,201.7,11.8894]
[1759028713540,7.39,201.78,201.71,4.4591]
[1759028713747,7.39,201.78,201.72,7.43]
[1759028714548,7.39,201.78,201.72,11.889]
[1759028718558,11.8479,201.78,201.72,11.889]
[1759028718761,7.39,201.78,201.7,4.4595]
[1759028718955,7.39,201.78,201.69,7.43]
[1759028720556,4.4586,201.75,201.69,7.43]
[1759028720760,11.8486,201.75,201.69,7.43]
[1759028725463,7.39,201.75,201.69,11.8896]
[1759028725965,8.14,201.78,201.69,7.87]
[1759028726155,8.14,201.78,201.7,7.87]
[1759028727056,12.5979,201.78,201.72,4.459]
[1759028727357,12.5979,201.78,201.72,12.329]
[1759028730067,12.5979,201.78,201.72,4.459]
[1759028730264,8.14,201.82,201.76,7.87]
[1759028732665,12.5971,201.82,201.76,7.87]
[1759028733466,1.89176629,201.86,201.74,5.55594795]
[1759028733467,8.14,201.8,201.74,5.55594795]
[1759028733666,8.14,201.8,201.73,17.88474795]
[1759028736769,8.14,201.8,201.74,4.4585]
[1759028736965,4.4573,201.81,201.74,4.4585]
[1759028737170,12.5973,201.81,201.75,7.87]
[1759028739567,4.4575,201.8,201.75,7.87]
[1759028739870,8.14,201.79,201.71,7.87]
[1759028741168,12.5987,201.74,201.68,13.95038365]
[1759028741369,4.4587,201.74,201.68,8.3944357]
[1759028741761,8.14,201.73,201.68,8.3944357]
[1759028741970,4.4587,201.74,201.68,8.3944357]
[1759028742267,8.14,201.72,201.68,8.3944357]
[1759028742461,8.14,201.72,201.66,107.41177112]
[1759028742660,8.14,201.72,201.65,13.42594795]
[1759028742865,8.14,201.72,201.62,5.55594795]
[1759028743665,8.14,201.68,201.62,5.55594795]
[1759028744062,8.14,201.68,201.61,13.42594795]
[1759028744261,4.4602,201.67,201.61,7.87]
[1759028749679,8.14,201.66,201.61,7.87]
[1759028750281,12.6002,201.67,201.6,7.87]
[1759028753088,4.4606,201.66,201.6,7.87]
[1759028761696,4.4608,201.65,201.6,7.87]
[1759028761993,8.07,201.64,201.61,8.04]
[1759028763900,8.07,201.64,201.58,19.2298975]
[1759028764296,8.07,201.64,201.59,8.04]
[1759028765000,8.07,201.64,201.58,19.2298975]
[1759028765202,4.4608,201.65,201.58,19.2298975]
[1759028765601,8.07,201.64,201.59,8.04]
[1759028765801,12.5308,201.65,201.59,8.04]
[1759028767703,4.461,201.64,201.58,14.7678975]
[1759028767900,4.461,201.64,201.56,485.7025]
[1759028768105,8.07,201.63,201.57,8.04]
[1759028768306,8.07,201.63,201.58,8.04]
[1759028768605,4.461,201.64,201.58,8.04]
[1759028768802,4.461,201.64,201.58,12.502]
[1759028769004,4.461,201.64,201.58,4.462]
[1759028769399,4.461,201.64,201.59,7.52]
[1759028769603,11.8304,201.66,201.59,7.52]
[1759028769799,11.8304,201.66,201.59,4.4618]
[1759028770004,11.8304,201.66,201.56,481.24]
[1759028770005,7.37,201.66,201.6,7.52]
[1759028771609,7.37,201.66,201.61,7.52]
[1759028771808,7.37,201.66,201.6,4.4616]
[1759028772410,7.37,201.67,201.61,7.52]
[1759028772804,7.37,201.65,201.61,7.52]
[1759028773011,4.4608,201.65,201.58,11.9821]
[1759028773310,7.37,201.64,201.58,11.9821]
[1759028775109,7.37,201.64,201.58,7.52]
[1759028775306,7.37,201.62,201.58,7.52]
[1759028775711,7.37,201.6,201.55,7.52]
[1759028775906,7.37,201.62,201.54,127.92]
[1759028776103,1.21163601,201.6,201.54,7.52]
[1759028776514,7.37,201.59,201.54,7.52]
[1759028777012,1.21163601,201.6,201.54,7.52]
[1759028777214,7.37,201.59,201.54,7.52]
[1759028777519,1.21163601,201.6,201.54,7.52]
[1759028777708,7.37,201.57,201.54,7.52]
[1759028780017,7.37,201.62,201.53,8.73163601]
[1759028781617,7.37,201.62,201.56,7.52]
[1759028783414,11.8313,201.62,201.56,7.52]
[1759028788525,4.4617,201.61,201.56,7.52]
[1759028788823,7.93,201.6,201.53,138.29914795]
[1759028789519,7.93,201.6,201.54,7.88]
[1759028790219,12.3911,201.63,201.55,4.4628]
[1759028790420,13.60273601,201.63,201.56,7.88]
[1759028791024,13.60273601,201.63,201.56,12.3425]
[1759028791523,13.60273601,201.63,201.55,7.88]
[1759028791524,7.93,201.63,201.55,7.88]
[1759028791720,4.4607,201.65,201.56,9.09163601]
[1759028792122,4.4607,201.65,201.56,6.76758396]
[1759028792415,4.4607,201.65,201.57,7.88]
[1759028792620,4.4607,201.65,201.59,7.88]
[1759028795326,7.93,201.64,201.59,7.88]
[1759028795527,4.4607,201.65,201.59,7.88]
[1759028795728,7.93,201.64,201.59,7.88]
[1759028796427,7.93,201.64,201.58,12.342]
[1759028797325,1.21163601,201.66,201.56,6.76758396]
[1759028797530,7.93,201.72,201.63,7.88]
[1759028797730,9.14163601,201.72,201.63,9.09163601]
[1759028797926,1.21163601,201.74,201.67,4.46]
[1759028798127,1.21163601,201.74,201.68,7.88]
[1759028798625,1.21163601,201.74,201.67,4.46]
[1759028798832,5.67043601,201.74,201.68,7.88]
[1759028799031,13.60043601,201.74,201.68,7.88]
[1759028803327,9.14163601,201.74,201.68,7.88]
[1759028803529,7.93,201.71,201.62,6.76758396]
[1759028803724,1.21163601,201.7,201.62,7.88]
[1759028804634,5.67133601,201.7,201.62,12.3411]
[1759028807038,5.67133601,201.7,201.63,7.88]
[1759028810143,7.93,201.71,201.62,1.21163601]
[1759028810343,7.93,201.71,201.63,7.88]
[1759028811631,7.93,201.71,201.64,4.4607]
[1759028811939,7.93,201.71,201.65,7.88]
[1759028815445,12.3895,201.71,201.65,7.88]
[1759028819450,4.4597,201.7,201.65,7.88]
[1759028819644,4.4597,201.7,201.63,4.461]
[1759028819849,11.9497,201.7,201.64,7.74]
[1759028822648,11.9497,201.7,201.64,12.2007]
[1759028827949,11.9497,201.7,201.64,7.74]
[1759028828952,4.4599,201.69,201.64,7.74]
[1759028829150,1.21163601,201.68,201.61,7.74]
[1759028829543,8.01,201.67,201.61,7.74]
[1759028830556,8.01,201.67,201.61,12.2014]
[1759028831359,8.01,201.67,201.62,4.4612]
[1759028831954,12.4696,201.7,201.64,7.82]
[1759028833753,4.4599,201.69,201.64,7.82]
[1759028833957,8.01,201.68,201.64,7.82]
[1759028834157,4.4599,201.69,201.64,7.82]
[1759028834358,8.01,201.68,201.64,7.82]
[1759028834859,4.4599,201.69,201.64,7.82]
[1759028835859,8.01,201.68,201.64,7.82]
[1759028836060,4.4599,201.69,201.64,7.82]
[1759028836260,8.01,201.68,201.64,7.82]
[1759028836659,4.4599,201.69,201.64,7.82]
[1759028836858,8.01,201.68,201.64,7.82]
[1759028837555,4.4599,201.69,201.64,7.82]
[1759028837760,8.01,201.68,201.64,7.82]
[1759028837950,4.4599,201.69,201.64,7.82]
[1759028838154,8.01,201.68,201.64,7.82]
[1759028838353,4.4599,201.69,201.64,7.82]
[1759028838551,8.01,201.68,201.64,7.82]
[1759028838756,4.4599,201.69,201.64,7.82]
[1759028838952,8.01,201.68,201.64,7.82]
[1759028839157,4.4599,201.69,201.64,7.82]
[1759028839866,8.01,201.68,201.64,7.82]
[1759028840059,4.4599,201.69,201.64,7.82]
[1759028840254,8.01,201.68,201.64,7.82]
[1759028840661,8.01,201.68,201.63,4.461]
[1759028841069,8.01,201.68,201.64,7.82]
[1759028841366,8.01,201.68,201.65,7.82]
[1759028841762,4.4599,201.69,201.65,7.82]
[1759028842266,8.01,201.68,201.65,7.82]
[1759028843972,7.91,201.68,201.65,7.82]